Cogmind - Beta 16 @@@ ROGUE MODE // 2026.01.05 @ 15:06:35 Player: jam Result: Destroyed by Autobeam Turret with Autobeam Performance ------------- Evolutions (0) 0 Regions Visited (3) 600 Robots Destroyed (18) 90 Value Destroyed (296) 296 Prototype IDs (0) 0 Alien Tech Used (0) 0 Bonus (0) 0 TOTAL SCORE: 986 Bonus ------- None Cogmind --------- Core Integrity 0/250 Matter 300/300 Energy 125/125 System Corruption 2% Temperature Cool (6) Movement Walking (330) Ox3 Location -10/Subcaves Parts ------- > --- POWER (1) -------- Light Ion Engine > --- PROPULSION (2) --- Aluminum Leg > --- UTILITY (2) ------ Large Storage Unit Terrain Scanner > --- WEAPON (2) ------- Subdweller Beam Cannon Light Assault Rifle > --- INVENTORY (15) --- Light Ion Engine Light Treads Light Treads Aluminum Leg Disposable Heat Sink Disposable Heat Sink Small Storage Unit Large Storage Unit Subdweller Optics Medium Laser Mining Laser Peak State ------------ > --- POWER ------------ Ion Engine > --- PROPULSION ------- Aluminum Leg Aluminum Leg > --- UTILITY ---------- Large Storage Unit Improved Terrain Scanner > --- WEAPON ----------- EM Pulse Gun Light Assault Rifle > --- INVENTORY -------- Light Ion Engine Light Ion Engine Light Treads Light Treads Aluminum Leg Small Storage Unit Large Storage Unit Seismic Detector Medium Laser Mining Laser [Rating: 10] Favorites ----------- Power Ion Engine Engine Ion Engine Propulsion Aluminum Leg Leg Aluminum Leg Utility Large Storage Unit Device Terrain Scanner Storage Large Storage Unit Weapon Light Assault Rifle Energy Gun EM Pulse Gun Energy Cannon Subdweller Beam Cannon Ballistic Gun Light Assault Rifle Build | -11 -10 -10 -10 ------- Run | Yrd Mat Min Sub Slots Evolved . | . . . . Power . | . . . . Propulsion . | . . . . Utility . | . . . . Weapon . | . . . . Parts Attached 17 | 8 4 3 2 Power 3 | 1 1 . 1 Engine 3 | 1 1 . 1 Core . | . . . . Reactor . | . . . . Propulsion 4 | 2 2 . . Treads . | . . . . Leg 4 | 2 2 . . Wheel . | . . . . Hover . | . . . . Flight . | . . . . Utility 5 | 2 1 2 . Device 3 | 1 . 2 . Storage 2 | 1 1 . . Processor . | . . . . Hackware . | . . . . Protection . | . . . . Artifact . | . . . . Weapon 5 | 3 . 1 1 Energy Gun 2 | 2 . . . Energy Cannon 1 | . . . 1 Ballistic Gun 2 | 1 . 1 . Ballistic Cannon . | . . . . Launcher . | . . . . Special Weapon . | . . . . Impact Weapon . | . . . . Slashing Weapon . | . . . . Piercing Weapon . | . . . . Special Melee Weapon . | . . . . Unidentified Prototypes . | . . . . Parts Lost 6 | . . 2 4 Power 2 | . . . 2 Propulsion 2 | . . . 2 Utility 1 | . . 1 . Weapon 1 | . . 1 . Highest Loss Streak 3 | . . 2 3 To Critical Strikes . | . . . . Average Backups 10 | 3 9 11 10 Power 2 | . 2 3 1 Propulsion 3 | 1 2 4 3 Utility 3 | . 2 2 3 Weapon 1 | . 2 1 2 Tool/Special . | . . . . Unused Backups 8 | . . . 8 Power 1 | . . . 1 Propulsion 2 | . . . 2 Utility 4 | . . . 4 Weapon 1 | . . . 1 Tool/Special . | . . . . Average Slot Usage (%) 99 | . 100 99 99 Engine 13 | . 14 14 13 Leg 27 | . 28 28 27 Device 14 | . 14 14 14 Storage 14 | . 14 14 14 Energy Gun 5 | . 14 9 . Energy Cannon 4 | . . . 7 Ballistic Gun 18 | . 14 18 20 Peak Build Rating 10 | 9 10 10 9 Average Rating 8 | 5 9 9 8 On Entrance 6 | . 9 10 8 Avg Prop Armor Cover (%) . | . . . . Naked Turns . | . . . . Heaviest Build 33 | 14 29 29 33 Greatest Support 20 | 20 20 20 20 Greatest Overweight (x) 3 | 2 1 1 3 Average Overweight (x) . | . . 1 1 Largest Inventory Capacity 15 | 8 15 15 15 Average Capacity 14 | 7 14 15 15 Most Carried 12 | 7 12 12 11 Average Carried 10 | 3 9 11 10 Final Capacity 15 | 8 15 15 15 Final Carried 12 | 7 12 11 11 Class Distribution -------------------- 60% | Mutant 39% | Scavenger-Mutant Dominant Class ---------------- Mutant | -10/Materials Scavenger-Mutant | -10/Mines Mutant | -10/Subcaves Resources | -11 -10 -10 -10 ----------- Run | Yrd Mat Min Sub Matter Collected 471 | 247 51 93 80 Remotely . | . . . . Salvage Created 422 | 72 156 48 146 Parts 33 | 8 12 6 7 Haulers Intercepted . | . . . . Recyclers Shooed 1 | 1 . . . Parts Field Recycled . | . . . . Retrieved Matter . | . . . . Parts Self-Destructed 15 | . . . 15 Prevented . | . . . . Parts Restored . | . . . . Kills | -11 -10 -10 -10 ------- Run | Yrd Mat Min Sub Combat Hostiles Destroyed 13 | . 6 3 4 Guns 11 | . 6 3 2 Cannons 1 | . . . 1 Classes Destroyed 6 | 2 3 . 1 Worker 2 | 1 1 . . Tunneler 2 | 2 . . . Watcher 1 | . 1 . . Swarmer 9 | . 5 3 1 Grunt 1 | . 1 . . Subdweller 3 | . . . 3 Best Kill Streak 5 | 2 5 2 1 Combat Bots Only 3 | . 3 2 1 Max Kills in Single Turn 1 | 1 1 1 1 Gunslinging . | . . . . Exploded . | . . . . Melee . | . . . . Uniques/NPCs Destroyed . | . . . . Combat | -11 -10 -10 -10 -------- Run | Yrd Mat Min Sub Hostile Shots Fired 141 | . 31 34 76 Missed 48 | . 8 12 28 Hits 93 | . 23 22 48 Projectile 93 | . 23 22 48 Critical Strikes 1 | . . . 1 Damage Taken 1055 | . 259 174 622 Core 253 | . 41 37 175 Absorbed by Shields . | . . . . Core Remaining (%) 100 | 100 . . . Volleys Fired 67 | 5 15 18 29 Largest 2 | 2 2 2 2 Hottest 100 | 60 60 70 100 Shots Fired 131 | 10 30 33 58 Gun 121 | 10 30 33 48 Cannon 10 | . . . 10 Launcher . | . . . . Special . | . . . . Kinetic 88 | 5 15 20 48 Thermal 19 | . . 9 10 Explosive . | . . . . Electromagnetic 24 | 5 15 4 . Robot Hit Streak 9 | 2 6 5 9 Robot Miss Streak 6 | 2 2 6 3 Penetration Max . | . . . . Secondary Targets 5 | . 2 2 1 Max Gunslinging Chain 1 | . 1 1 1 Shots Hit Robots 72 | 5 14 13 40 Core Hits 29 | 3 10 5 11 Critical Kills 1 | . . . 1 Critical Parts Destroyed . | . . . . Critical Strikes 2 | 1 . . 1 Meltdown 1 | . . . 1 Corrupt 1 | 1 . . . Melee Attacks . | . . . . Impact . | . . . . Slashing . | . . . . Piercing . | . . . . Sneak Attacks . | . . . . Combat Hostiles . | . . . . Follow-up Attacks . | . . . . Damage Inflicted 858 | 87 220 147 404 Guns 681 | 87 187 139 268 Cannons 136 | . . . 136 Explosions 33 | . 33 . . Melee . | . . . . Ramming 8 | . . 8 . Kinetic 394 | 30 41 55 268 Thermal 231 | . 33 62 136 Explosive . | . . . . Electromagnetic 225 | 57 146 22 . Impact . | . . . . Slashing . | . . . . Piercing . | . . . . Highest Corruption 2 | . 2 2 2 Average Corruption 2 | . 2 2 2 Corruption Purged . | . . . . Corruption Blocked . | . . . . Effects 16 | . 3 3 10 Message Errors 5 | . 1 . 4 Matter Fused 2 | . . 1 1 Heat Flow Errors 2 | . . 1 1 Energy Discharges 5 | . 1 1 3 Data Loss (minor) 2 | . 1 . 1 Overload Shots . | . . . . Overflow Damage . | . . . . Projectiles . | . . . . Explosions . | . . . . Melee . | . . . . Knockbacks . | . . . . Impact . | . . . . Kinetic . | . . . . Secondary . | . . . . Self-Inflicted Damage . | . . . . Shots . | . . . . Rammed . | . . . . Targets Rammed 3 | . . 3 . Kicked 3 | . . 3 . Crushed . | . . . . Highest Temperature 173 | 40 40 120 173 Average Temperature 34 | 20 19 47 35 Received Heat Transfer 216 | . 12 . 204 Siege Activations . | . . . . Martial Activations . | . . . . Shielding Activations . | . . . . Robots Disrupted . | . . . . Combat Hostiles . | . . . . Robots Corrupted . | . . . . Combat Hostiles . | . . . . Parts Fried . | . . . . Impact Corruptions . | . . . . Robots Melted 1 | . . . 1 Combat Hostiles 1 | . . . 1 Parts Melted 1 | . . . 1 Heat Transferred 420 | . 50 185 185 Parts Sabotaged . | . . . . Parts Stolen . | . . . . Parts Stripped . | . . . . Power Chain Reactions 1 | . 1 . . Alert | -11 -10 -10 -10 ------- Run | Yrd Mat Min Sub Maximum Alert Level . | . . . . Low Security (%) 100 | 100 100 100 . Level 1 . | . . . . Level 2 . | . . . . Level 3 . | . . . . Level 4 . | . . . . Level 5 . | . . . . High Security . | . . . . Max Security . | . . . . Peak Influence 92 | 10 92 40 . Initial 31 | . 3 31 . Average 20 | . 34 11 . Influence Increases 353 | 15 203 70 65 Destroy 0b10 Robot/C 200 | . 120 60 20 Destroy 0b10 Robot/NC 25 | 15 10 . . Destroy Leader 22 | . 12 10 . Successful Hack 16 | . 16 . . Disable Machine 30 | . 30 . . Lose Combat Pursuer 60 | . 15 . 45 Influence Decreases 298 | 10 126 152 10 Entered New Map 53 | . 2 51 . Time Decay 215 | 10 124 81 . Lost Part 30 | . . 20 10 Squads Dispatched 2 | . 2 . . Investigation . | . . . . Extermination . | . . . . Reinforcement 2 | . 2 . . Assault . | . . . . Garrison . | . . . . Intercept . | . . . . Searches Triggered . | . . . . Construction Impeded . | . . . . Haulers Reinforced . | . . . . Active Scanning Responses . | . . . . Cargo Convoy Interrupts . | . . . . Stealth | -11 -10 -10 -10 --------- Run | Yrd Mat Min Sub Distress Signals 4 | . 4 . . Communications Jammed . | . . . . Distress Signals . | . . . . Times Spotted 22 | . 13 3 6 Peak Tracking Total 4 | . 4 3 4 Tactical Retreats 3 | . 1 . 2 Traps | -11 -10 -10 -10 ------- Run | Yrd Mat Min Sub Traps Triggered 1 | . 1 . . Indirectly . | . . . . Trap Hack Attempts . | . . . . Triggered . | . . . . Disarmed . | . . . . Reprogrammed . | . . . . Reused . | . . . . Traps Extracted . | . . . . Installed . | . . . . Triggered . | . . . . Machines | -11 -10 -10 -10 ---------- Run | Yrd Mat Min Sub Machines Disabled 2 | . 2 . . Max in Single Turn 2 | . 2 . . Machines Repaired . | . . . . Machines Dismantled . | . . . . Machines Sabotaged . | . . . . Overloaded Fab Kills . | . . . . Hacking | -11 -10 -10 -10 --------- Run | Yrd Mat Min Sub Machines Accessed 2 | . 2 . . Terminals 2 | . 2 . . Fabricators . | . . . . Repair Stations . | . . . . Recycling Units . | . . . . Scanalyzers . | . . . . Garrison Access . | . . . . Total Hacks 5 | . 5 . . Successful 1 | . 1 . . Failed 4 | . 4 . . Catastrophic . | . . . . Database Lockouts . | . . . . Manual 5 | . 5 . . Terminals 5 | . 5 . . Fabricators . | . . . . Repair Stations . | . . . . Recycling Units . | . . . . Scanalyzers . | . . . . Garrison Access . | . . . . Terminal Hacks 1 | . 1 . . Branch Access Points 1 | . 1 . . Fabricator Hacks . | . . . . Repair Station Hacks . | . . . . Recycling Unit Hacks . | . . . . Scanalyzer . | . . . . Garrison Access Hacks . | . . . . Unauthorized Hacks . | . . . . Terminals . | . . . . Fabricators . | . . . . Repair Stations . | . . . . Recycling Units . | . . . . Scanalyzers . | . . . . Garrison Access . | . . . . Data Cores Recovered . | . . . . Used . | . . . . Hacking Detections 1 | . 1 . . Full Trace Events . | . . . . Feedback Events . | . . . . Feedback Blocked . | . . . . Robot Schematics Acquired . | . . . . Robots Built . | . . . . Authchips . | . . . . Time . | . . . . Total Robot Build Rating . | . . . . Part Schematics Acquired . | . . . . Parts Built . | . . . . Authchips . | . . . . Time . | . . . . Total Part Build Rating . | . . . . Part Studies Acquired . | . . . . Parts Repaired . | . . . . Time . | . . . . Parts Recycled . | . . . . Recycled Matter . | . . . . Retrieved Matter . | . . . . Retrieved Components . | . . . . Parts Scanalyzed . | . . . . Part Schematics Acquired . | . . . . Parts Damaged . | . . . . Bothacking | -11 -10 -10 -10 ------------ Run | Yrd Mat Min Sub Used RIF Installer . | . . . . Robots Hacked . | . . . . Non-combat . | . . . . Combat . | . . . . Robot Hacks Applied . | . . . . Relay Couplers Released . | . . . . Fabnet Peak Effective % . | . . . . Robots Rewired . | . . . . Allies Hacked . | . . . . Hacks Repelled . | . . . . Allies | -11 -10 -10 -10 -------- Run | Yrd Mat Min Sub Total Allies . | . . . . Largest Group . | . . . . Highest-Rated Group . | . . . . Highest-Rated Ally . | . . . . Total Orders . | . . . . Ally Attacks . | . . . . Total Damage . | . . . . Kills . | . . . . Allies Corrupted . | . . . . Allies Melted . | . . . . Intel | -11 -10 -10 -10 ------- Run | Yrd Mat Min Sub Active Infowar (turns) 1464 | 18 338 292 816 Terrain 1353 | 18 338 181 816 Seismic 111 | . . 111 . Robot Analysis Total . | . . . . Derelict Logs Recovered 2 | . . 2 . Drone Launches . | . . . . Drone Recoveries . | . . . . Exploration | -11 -10 -10 -10 ------------- Run | Yrd Mat Min Sub Turns Passed 1555 | 103 338 298 816 Spaces Moved 723 | 56 156 126 385 Core 15 | 15 . . . Treads . | . . . . Legs 708 | 41 156 126 385 Wheels . | . . . . Hover . | . . . . Flight . | . . . . Fastest Speed 50 | 50 120 190 190 Average Speed 184 | 125 186 190 190 Slowest Speed 330 | 190 190 190 330 Overloaded Moves . | . . . . Propulsion Burnouts . | . . . . Robots Hopped . | . . . . Potential Cave-ins . | . . . . Cave-ins Triggered . | . . . . Exploration Rate (%) 21 | 4 37 27 19 Regions Visited 3 Branch Regions 2 Pre-discovered Areas . | . . . . Known Exits Taken 1 | . 1 . . Unknown Exits Taken 2 | 1 . 1 . Scrap Searched 1 | . . 1 . Spaces Dug . | . . . . Terrain Destroyed . | . . . . Melee . | . . . . Projectile . | . . . . AOE . | . . . . Terrain Rammed . | . . . . Walls Destroyed . | . . . . Machines Disabled . | . . . . Actions | -11 -10 -10 -10 --------- Run | Yrd Mat Min Sub Total 825 | 75 175 153 422 Wait . | . . . . Move 720 | 55 155 125 385 Hop . | . . . . Pick Up 11 | 7 1 . 3 Fast Attach 9 | 7 . 1 1 Attach 6 | . . 3 3 Detach 1 | . . 1 . Swap 6 | 1 4 1 . Drop 2 | . . 1 1 Fire 67 | 5 15 18 29 Melee . | . . . . Ram . | . . . . Kick 3 | . . 3 . Crush . | . . . . Escape Stasis . | . . . . Rewire . | . . . . Trap . | . . . . Miscellaneous . | . . . . Route ------- -11/Scrapyard -10/Materials (discovered 2 exits: [*Mat] / *Min) -10/Mines (discovered 2 exits: [*Mat] / [*Sub]) -10/Subcaves History --------- Turn | Location | Event 22 | -11/Scrapyard | Discovered new exit (range 15) 104 | -11/Scrapyard | Entered Materials 235 | -10/Materials | Identified exit to Mines 290 | -10/Materials | Discovered new exit (range 7) 306 | -10/Materials | Build established: Mutant 442 | -10/Materials | Entered Mines 442 | -10/Mines | Discovered new exit (range 7) 564 | -10/Mines | Learned Materials emergency access door positions 691 | -10/Mines | Discovered new exit (range 10) 738 | -10/Mines | Build established: Scavenger-Mutant 740 | -10/Mines | Entered Subcaves 1051 | -10/Subcaves | Core integrity fell below 50% 1089 | -10/Subcaves | Lost 3 parts (2p1n) 1099 | -10/Subcaves | Shifting Twisted Machinery released Sub. Beam Cannon 1126 | -10/Subcaves | Core integrity fell below 20% 1329 | -10/Subcaves | Build established: Mutant 1556 | -10/Subcaves | Destroyed by Autobeam Turret with Autobeam Last Messages --------------- 01131_ Sub. Power Source melted. 01134_ Acquired 20 matter. 01136_ Subatomizers dissect the Lgt. Assault Rifle, destroying it. 01138_ Acquired Disposable Heat Sink. 01176_ System corrupted: Heat flow error (+213). 01201_ VUW/P5< KGB:UAYRCTVN 01210_ Subatomizers dissect the Sub. Power Source. 01281_ System corrupted: Energy discharge (-31). 01325_ System corrupted: Energy discharge (-25). 01411_ System corrupted: Component data lost. 01438_ System corrupted: Energy discharge (-50). 01501_ System corrupted: Matter fused (-10). 01527_ Subatomizers dissect the Disposable Heat Sink. 01540_ Subatomizers dissect the Sub. Optics. 01547_ S-10 Pest destroyed. 01552_ Aluminum Leg destroyed. 01554_ S-10 Pest destroyed. 01555_ Subatomizers dissect the Sub. Optics. 01555_ Acquired 10 matter. Map ----- +----------------------------------------------------+ | # ##???## #?????#???????????????????????????? | | # #????## #?????????????????????????????????? | | # #?????## ##?????????????????????????????????? | | #???#??##???????????????????????????????????? | | ##???????????????????????????????????????????? | | #????????????????????????????????????????????? | | #????????????????????????????????????????????? | | ###????????????????????????????????????????????? | | ####??#?####???????????????????????????????????? | | ## ##??# ##??????????????????????????????????? | | ## #?# ???????????????????????????????????? | | #?# # ???????????#???????????????????????? | | ### ##???????????????????????????????????? | | #???????????????????????????????????? | | #???????????????????"???????????????? | | ##??????? ? ???????? " ??????????????? | | ##????????????????##" ???????????????? | | #### #???????????###?##"" ????????????????? | | ##?### #??????????##""?" #???? ??????????? | | #####?# ##????????? #?""&##### ??????????? | | #?????## ##?????#???? ## =%* t??????????? | | ######## #??##??????? % %%[ ?????????? | | # ### ##??????????# =% ???????????? | | #?# ############# #??????????????? | | ##?# # # ##!&! #???????????????? | | ###?## [@! #????????????????? | | ##?### && ##????????????????? | | #### ## # ### ##?????????????????? | | # # ### # #??????????????????? | | ## ## #??????????????????? | | # ### ### ##??????????????????? | | #### ##?## # #?????#?????????????? | | ####### #?#?## ??????????????????? | | ##### ##?#### # ##?????# ?????????????????? | | ????# ##?## #### ##??? # ????????????????? | | ?##?###??# #????######???????????????? | | ##???#??## ###?????????????????????????? | | ????#???# ### ##???????????????????????????? | | ???????# ##??###????????????????????????????? | | ???????# #??????????????????????????????????? | | ???????##### #?????#?#??????????????????????????? | | ???????#???## #??????????????????????????????????? | | ?????????##?###??##??????????????????????????????? | | ???????#?????????????????????????????????????????? | | ??????#??????????????????????????????????????????? | | ?????????????????????????????????????????????????? | | ?????????????????????????????????????????????????? | | ?????????????????????????????????????????????????? | | ?????????????????????????????????????????????????? | | ?????????????????????????????????????????????????? | +----------------------------------------------------+ Best States ------------- Heat Dissipation 25 Energy Generation 10 Energy Capacity 250 Matter Stores 300 Matter Capacity 300 Sight Range 16 Terrain Scan Range 16 Terrain Scan Density 10 Evasion (%) 55 Item Schematics ----------------- None Robot Schematics ------------------ None Fabricated ------------ Nothing Repaired ---------- Nothing Studied --------- None Alien Tech Used ----------------- None Achievements -------------- None Challenges ------------ None Game ------ Seed ZipConcussiveMatterbank Manual? 0 Play Time 00:09:54 Cumulative 11.8 hours Start 2026.01.05 @ 14:58:59 End 2026.01.05 @ 15:06:35 Sessions 1 Manual Loads 0 Difficulty Rogue Special Mode None Game No. 24 Rogue 21 Adventurer 3 Explorer 0 Win Type - Total 0 Types 0/0/0/0/0/0/0/0/0/0 Lore% 8 Gallery% 18 Achievement% 13 Wizard Run 0 Options --------- Layout 0 ASCII 0 Keyboard 0 Movement Mouse Keybinds 0 Fullscreen 1 Font 18/SmallcapsGlow Map View 65x51 Zoom Use 0% Tactical HUD 1 Map Filters NONE Filters NONE Steam 1 RUN: 029f3f74-f660-433e-84e0-f3c2c535f65c